[Event "*** SCC Grand Prix: Titled Tuesday Blitz"]
[Site "Chess.com"]
[Date "2020.07.14"]
[Round "3"]
[White "grunbergmihai"]
[Black "Angry_Twin"]
[Result "0-1"]
[WhiteElo "2515"]
[BlackElo "2767"]
[TimeControl "180+1"]
[EndTime "10:29:41 PDT"]
[Termination "Angry_Twin won by checkmate"]

1. Nf3 {[%clk 0:03:00.9]} 1... Nf6 {[%clk 0:02:58.7]} 2. c4 {[%clk 0:03:00.6]}
2... e6 {[%clk 0:02:58.9]} 3. g3 {[%clk 0:03:00.2]} 3... d5 {[%clk 0:02:58.9]}
4. Bg2 {[%clk 0:03:00.7]} 4... Be7 {[%clk 0:02:57.7]} 5. O-O {[%clk 0:03:01.6]}
5... O-O {[%clk 0:02:57.9]} 6. d4 {[%clk 0:03:01.7]} 6... c6 {[%clk 0:02:58.4]}
7. Qc2 {[%clk 0:03:01.3]} 7... b6 {[%clk 0:02:57.1]} 8. Rd1 {[%clk 0:03:00.7]}
8... Nbd7 {[%clk 0:02:56.5]} 9. b3 {[%clk 0:02:57.2]} 9... Bb7 {[%clk
0:02:55.7]} 10. Nbd2 {[%clk 0:02:52.6]} 10... c5 {[%clk 0:02:53.9]} 11. Bb2
{[%clk 0:02:45.9]} 11... Rc8 {[%clk 0:02:52.9]} 12. Rac1 {[%clk 0:02:45.2]}
12... dxc4 {[%clk 0:02:46.6]} 13. bxc4 {[%clk 0:02:23.3]} 13... cxd4 {[%clk
0:02:45.5]} 14. Nxd4 {[%clk 0:02:21.8]} 14... Bxg2 {[%clk 0:02:45.2]} 15. Kxg2
{[%clk 0:02:22.7]} 15... Qc7 {[%clk 0:02:44.7]} 16. N2f3 {[%clk 0:02:05.7]}
16... Qb7 {[%clk 0:02:43.7]} 17. Nb5 {[%clk 0:02:00]} 17... Rc6 {[%clk
0:02:25.6]} 18. Nbd4 {[%clk 0:01:51.3]} 18... Rcc8 {[%clk 0:02:18.8]} 19. Nb5
{[%clk 0:01:51]} 19... Nc5 {[%clk 0:01:32.3]} 20. Bxf6 {[%clk 0:01:47.1]} 20...
gxf6 {[%clk 0:01:28.8]} 21. Nd6 {[%clk 0:01:45.5]} 21... Bxd6 {[%clk 0:01:29]}
22. Rxd6 {[%clk 0:01:45.3]} 22... Rc7 {[%clk 0:01:26.6]} 23. Rd4 {[%clk
0:01:33.7]} 23... f5 {[%clk 0:01:19.9]} 24. Kg1 {[%clk 0:01:20.7]} 24... Ne4
{[%clk 0:01:17.9]} 25. Rcd1 {[%clk 0:01:00.9]} 25... b5 {[%clk 0:01:12.6]} 26.
Qb3 {[%clk 0:00:51]} 26... bxc4 {[%clk 0:01:11.4]} 27. Rxc4 {[%clk 0:00:41.8]}
27... Qxb3 {[%clk 0:01:10.6]} 28. axb3 {[%clk 0:00:41.7]} 28... Rxc4 {[%clk
0:01:10.8]} 29. bxc4 {[%clk 0:00:42.6]} 29... a5 {[%clk 0:00:46.3]} 30. Ra1
{[%clk 0:00:41.8]} 30... Ra8 {[%clk 0:00:45.5]} 31. Ra3 {[%clk 0:00:38.3]} 31...
Kf8 {[%clk 0:00:37.9]} 32. Nd4 {[%clk 0:00:36.6]} 32... a4 {[%clk 0:00:34.1]}
33. f3 {[%clk 0:00:33.9]} 33... Nc5 {[%clk 0:00:33.9]} 34. Kf2 {[%clk
0:00:25.8]} 34... Rb8 {[%clk 0:00:33]} 35. Nb5 {[%clk 0:00:25.6]} 35... Ke7
{[%clk 0:00:30.6]} 36. Ke3 {[%clk 0:00:25.5]} 36... e5 {[%clk 0:00:30.8]} 37.
Kd2 {[%clk 0:00:22]} 37... Rd8+ {[%clk 0:00:28.5]} 38. Kc3 {[%clk 0:00:19.6]}
38... Kd7 {[%clk 0:00:20.1]} 39. Kb4 {[%clk 0:00:19.2]} 39... Kc6 {[%clk
0:00:20.5]} 40. Na7+ {[%clk 0:00:18.4]} 40... Kb6 {[%clk 0:00:20.2]} 41. Nb5
{[%clk 0:00:17.6]} 41... Rd2 {[%clk 0:00:20.6]} 42. Re3 {[%clk 0:00:10.4]} 42...
f6 {[%clk 0:00:17.5]} 43. Nc3 {[%clk 0:00:05.7]} 43... Rb2+ {[%clk 0:00:17.4]}
44. Ka3 {[%clk 0:00:05.7]} 44... Rb3+ {[%clk 0:00:17.9]} 45. Ka2 {[%clk
0:00:05.8]} 45... Ka5 {[%clk 0:00:17.3]} 46. Nd5 {[%clk 0:00:05.5]} 46... Rb7
{[%clk 0:00:15.4]} 47. Nxf6 {[%clk 0:00:05]} 47... Kb4 {[%clk 0:00:14]} 48. Rxe5
{[%clk 0:00:04.7]} 48... Kxc4 {[%clk 0:00:14.1]} 49. Rxf5 {[%clk 0:00:04.5]}
49... Nb3 {[%clk 0:00:10.4]} 50. Rf4+ {[%clk 0:00:04]} 50... Kc3 {[%clk
0:00:10.8]} 51. Nd5+ {[%clk 0:00:03.6]} 51... Kd2 {[%clk 0:00:09.7]} 52. Rxa4
{[%clk 0:00:02.9]} 52... Nc1+ {[%clk 0:00:10]} 53. Ka3 {[%clk 0:00:02.9]} 53...
Rb3# {[%clk 0:00:08.5]} 0-1

[Event "*** SCC Grand Prix: Titled Tuesday Blitz"]
[Site "Chess.com"]
[Date "2020.07.14"]
[Round "3"]
[White "maxsergej"]
[Black "MarceloPlaya"]
[Result "0-1"]
[WhiteElo "2085"]
[BlackElo "2314"]
[TimeControl "180+1"]
[EndTime "10:29:44 PDT"]
[Termination "MarceloPlaya won on time"]

1. e4 {[%clk 0:03:00.9]} 1... e6 {[%clk 0:02:58.7]} 2. d4 {[%clk 0:03:00.4]}
2... d5 {[%clk 0:02:57.5]} 3. Nd2 {[%clk 0:02:59.7]} 3... c5 {[%clk 0:02:56.5]}
4. exd5 {[%clk 0:02:59.4]} 4... exd5 {[%clk 0:02:55.1]} 5. Ngf3 {[%clk 0:02:59]}
5... Nc6 {[%clk 0:02:54.3]} 6. Bb5 {[%clk 0:02:58.4]} 6... Bd6 {[%clk
0:02:53.1]} 7. dxc5 {[%clk 0:02:55]} 7... Bxc5 {[%clk 0:02:47]} 8. O-O {[%clk
0:02:54.5]} 8... Ne7 {[%clk 0:02:45.8]} 9. Nb3 {[%clk 0:02:53]} 9... Bb6 {[%clk
0:02:43.7]} 10. h3 {[%clk 0:02:50.1]} 10... O-O {[%clk 0:02:40.6]} 11. c3 {[%clk
0:02:49.9]} 11... Qd6 {[%clk 0:02:39.2]} 12. Qd2 {[%clk 0:02:33.1]} 12... Ng6
{[%clk 0:02:18.4]} 13. Nbd4 {[%clk 0:02:22]} 13... Nxd4 {[%clk 0:02:12]} 14.
Nxd4 {[%clk 0:02:18.9]} 14... Bc7 {[%clk 0:02:04]} 15. f4 {[%clk 0:02:09.8]}
15... Nh4 {[%clk 0:01:46.4]} 16. Bd3 {[%clk 0:02:02.1]} 16... Bd7 {[%clk
0:01:32.5]} 17. Nf3 {[%clk 0:01:51.3]} 17... Nf5 {[%clk 0:01:28.2]} 18. Ne5
{[%clk 0:01:47]} 18... Rad8 {[%clk 0:01:25]} 19. Kh2 {[%clk 0:01:30]} 19... Bc8
{[%clk 0:01:20.7]} 20. g4 {[%clk 0:01:23.9]} 20... f6 {[%clk 0:01:11.2]} 21.
gxf5 {[%clk 0:01:01.5]} 21... fxe5 {[%clk 0:01:09.7]} 22. fxe5 {[%clk
0:01:01.6]} 22... Qxe5+ {[%clk 0:01:09.3]} 23. Kh1 {[%clk 0:00:50.7]} 23... Bxf5
{[%clk 0:01:04.4]} 24. Bxf5 {[%clk 0:00:49.5]} 24... Rxf5 {[%clk 0:01:02.5]} 25.
Rxf5 {[%clk 0:00:49.4]} 25... Qxf5 {[%clk 0:01:02.1]} 26. Qg2 {[%clk 0:00:48.8]}
26... Re8 {[%clk 0:00:52.2]} 27. Bd2 {[%clk 0:00:36.5]} 27... Re6 {[%clk
0:00:44.4]} 28. Rf1 {[%clk 0:00:31.7]} 28... Qd3 {[%clk 0:00:33.8]} 29. Qf3
{[%clk 0:00:23.3]} 29... Qxf3+ {[%clk 0:00:26.9]} 30. Rxf3 {[%clk 0:00:22.9]}
30... Re2 {[%clk 0:00:26.9]} 31. Rd3 {[%clk 0:00:22.7]} 31... Re5 {[%clk
0:00:19.8]} 32. Kg2 {[%clk 0:00:22.4]} 32... Rf5 {[%clk 0:00:19.1]} 33. Be3
{[%clk 0:00:19.7]} 33... a6 {[%clk 0:00:17.8]} 34. a4 {[%clk 0:00:18.9]} 34...
Kf7 {[%clk 0:00:17.5]} 35. b3 {[%clk 0:00:17.9]} 35... Ke6 {[%clk 0:00:17.3]}
36. Bd4 {[%clk 0:00:16.7]} 36... g5 {[%clk 0:00:16.5]} 37. Re3+ {[%clk
0:00:15.3]} 37... Be5 {[%clk 0:00:16]} 38. Re2 {[%clk 0:00:11.5]} 38... Kf6
{[%clk 0:00:15.3]} 39. Bxe5+ {[%clk 0:00:11.2]} 39... Rxe5 {[%clk 0:00:15.1]}
40. Rd2 {[%clk 0:00:11.6]} 40... Kf5 {[%clk 0:00:14.4]} 41. Kg3 {[%clk
0:00:11.4]} 41... h5 {[%clk 0:00:12.6]} 42. Rd3 {[%clk 0:00:11]} 42... Ke4
{[%clk 0:00:11.5]} 43. Rd4+ {[%clk 0:00:10.4]} 43... Ke3 {[%clk 0:00:10.9]} 44.
Rb4 {[%clk 0:00:09.6]} 44... Kd3 {[%clk 0:00:08.7]} 45. Rxb7 {[%clk 0:00:09.1]}
45... Kxc3 {[%clk 0:00:08.7]} 46. Kg2 {[%clk 0:00:07.9]} 46... d4 {[%clk
0:00:08.6]} 47. Rd7 {[%clk 0:00:06.5]} 47... d3 {[%clk 0:00:08.3]} 48. b4 {[%clk
0:00:05.2]} 48... Re3 {[%clk 0:00:06.9]} 49. b5 {[%clk 0:00:03.9]} 49... axb5
{[%clk 0:00:06.1]} 50. axb5 {[%clk 0:00:04.2]} 50... d2 {[%clk 0:00:06.3]} 51.
b6 {[%clk 0:00:03]} 51... Rd3 {[%clk 0:00:05.6]} 52. Rc7+ {[%clk 0:00:03.1]}
52... Kd4 {[%clk 0:00:03.5]} 53. b7 {[%clk 0:00:03.2]} 53... d1=Q {[%clk
0:00:03]} 0-1

[Event "*** SCC Grand Prix: Titled Tuesday Blitz"]
[Site "Chess.com"]
[Date "2020.07.14"]
[Round "3"]
[White "HanSchut"]
[Black "grandcoach"]
[Result "1/2-1/2"]
[WhiteElo "2332"]
[BlackElo "2118"]
[TimeControl "180+1"]
[EndTime "10:29:45 PDT"]
[Termination "Game drawn by repetition"]

1. e4 {[%clk 0:03:00.8]} 1... c5 {[%clk 0:02:59.4]} 2. Nf3 {[%clk 0:03:00.9]}
2... Nc6 {[%clk 0:02:59.4]} 3. d4 {[%clk 0:03:01.3]} 3... cxd4 {[%clk 0:03:00]}
4. Nxd4 {[%clk 0:03:01.8]} 4... e5 {[%clk 0:02:58.9]} 5. Nb5 {[%clk 0:03:01]}
5... d6 {[%clk 0:02:59.4]} 6. N1c3 {[%clk 0:03:00.4]} 6... a6 {[%clk 0:02:58.9]}
7. Na3 {[%clk 0:03:00.5]} 7... b5 {[%clk 0:02:59.4]} 8. Nd5 {[%clk 0:03:01]}
8... Nge7 {[%clk 0:02:59.9]} 9. c4 {[%clk 0:03:01]} 9... Nd4 {[%clk 0:02:51.8]}
10. Nc2 {[%clk 0:02:39.7]} 10... Nxc2+ {[%clk 0:02:42.6]} 11. Qxc2 {[%clk
0:02:39.4]} 11... Nxd5 {[%clk 0:02:43.2]} 12. cxd5 {[%clk 0:02:25.7]} 12... Be7
{[%clk 0:02:42.2]} 13. a4 {[%clk 0:02:23.6]} 13... Bd7 {[%clk 0:02:31.8]} 14.
axb5 {[%clk 0:01:57.3]} 14... axb5 {[%clk 0:02:32.7]} 15. Rxa8 {[%clk
0:01:56.3]} 15... Qxa8 {[%clk 0:02:33.5]} 16. Bd3 {[%clk 0:01:54.6]} 16... O-O
{[%clk 0:02:30.6]} 17. O-O {[%clk 0:01:54.1]} 17... Rc8 {[%clk 0:02:29.8]} 18.
Qe2 {[%clk 0:01:52.6]} 18... Qa4 {[%clk 0:02:21.1]} 19. f4 {[%clk 0:01:33.7]}
19... exf4 {[%clk 0:02:16.8]} 20. Bxf4 {[%clk 0:01:25.8]} 20... Qb4 {[%clk
0:02:05.3]} 21. Kh1 {[%clk 0:00:54.6]} 21... Bf6 {[%clk 0:02:03.8]} 22. h3
{[%clk 0:00:49.3]} 22... Re8 {[%clk 0:00:50.6]} 23. Qf2 {[%clk 0:00:33.9]} 23...
Bxb2 {[%clk 0:00:44.1]} 24. Rb1 {[%clk 0:00:26.5]} 24... Qd4 {[%clk 0:00:32.8]}
25. Qxd4 {[%clk 0:00:25.7]} 25... Bxd4 {[%clk 0:00:33.7]} 26. Bxd6 {[%clk
0:00:25.8]} 26... f6 {[%clk 0:00:20.7]} 27. g4 {[%clk 0:00:16.9]} 27... Kf7
{[%clk 0:00:19.4]} 28. Kg2 {[%clk 0:00:17.2]} 28... h6 {[%clk 0:00:16.5]} 29.
Kf3 {[%clk 0:00:17.6]} 29... Be5 {[%clk 0:00:15]} 30. Bxe5 {[%clk 0:00:17.2]}
30... Rxe5 {[%clk 0:00:15.9]} 31. Bxb5 {[%clk 0:00:17]} 31... Bxb5 {[%clk
0:00:14.8]} 32. Rxb5 {[%clk 0:00:17.9]} 32... Kg6 {[%clk 0:00:15.4]} 33. Rb7
{[%clk 0:00:17.1]} 33... Re8 {[%clk 0:00:14.6]} 34. Kf4 {[%clk 0:00:16.9]} 34...
Ra8 {[%clk 0:00:13.8]} 35. e5 {[%clk 0:00:15.1]} 35... Ra4+ {[%clk 0:00:13.5]}
36. Kf3 {[%clk 0:00:11.4]} 36... fxe5 {[%clk 0:00:14]} 37. Re7 {[%clk
0:00:09.6]} 37... Kf6 {[%clk 0:00:12]} 38. Re6+ {[%clk 0:00:09.6]} 38... Kf7
{[%clk 0:00:12.4]} 39. Rxe5 {[%clk 0:00:10]} 39... Rd4 {[%clk 0:00:13]} 40. Ke3
{[%clk 0:00:09.8]} 40... Rd1 {[%clk 0:00:12.7]} 41. h4 {[%clk 0:00:06.1]} 41...
Kf6 {[%clk 0:00:12.4]} 42. Re6+ {[%clk 0:00:05.8]} 42... Kf7 {[%clk 0:00:12.9]}
43. Re5 {[%clk 0:00:06.3]} 43... Kf6 {[%clk 0:00:12.5]} 44. Rf5+ {[%clk
0:00:06.9]} 44... Ke7 {[%clk 0:00:12]} 45. Ke4 {[%clk 0:00:06.6]} 45... Re1+
{[%clk 0:00:06.3]} 46. Kf4 {[%clk 0:00:06.3]} 46... Rf1+ {[%clk 0:00:06.3]} 47.
Ke5 {[%clk 0:00:06.9]} 47... Re1+ {[%clk 0:00:05.9]} 48. Kd4 {[%clk 0:00:07.4]}
48... Rd1+ {[%clk 0:00:06.4]} 49. Kc5 {[%clk 0:00:08]} 49... Rc1+ {[%clk
0:00:06.7]} 50. Kd4 {[%clk 0:00:08.2]} 50... Rd1+ {[%clk 0:00:06.9]} 51. Ke3
{[%clk 0:00:08.2]} 51... Re1+ {[%clk 0:00:05.9]} 52. Kd3 {[%clk 0:00:03]} 52...
Rd1+ {[%clk 0:00:05.8]} 53. Ke4 {[%clk 0:00:03.4]} 53... Re1+ {[%clk 0:00:05.5]}
54. Kd4 {[%clk 0:00:04]} 54... Rd1+ {[%clk 0:00:05.6]} 1/2-1/2

[Event "*** SCC Grand Prix: Titled Tuesday Blitz"]
[Site "Chess.com"]
[Date "2020.07.14"]
[Round "3"]
[White "Oneofmyturns"]
[Black "FontVella8"]
[Result "1-0"]
[WhiteElo "2699"]
[BlackElo "2504"]
[TimeControl "180+1"]
[EndTime "10:29:46 PDT"]
[Termination "Oneofmyturns won by resignation"]

1. d4 {[%clk 0:03:00.9]} 1... Nf6 {[%clk 0:02:59.8]} 2. c4 {[%clk 0:03:01.3]}
2... b6 {[%clk 0:02:59.7]} 3. f3 {[%clk 0:03:00.1]} 3... Bb7 {[%clk 0:02:59.4]}
4. e4 {[%clk 0:02:59.4]} 4... d6 {[%clk 0:03:00]} 5. Nc3 {[%clk 0:02:58.6]} 5...
g6 {[%clk 0:02:59.8]} 6. Be3 {[%clk 0:02:57.5]} 6... Bg7 {[%clk 0:02:59.7]} 7.
Qd2 {[%clk 0:02:52.5]} 7... Nbd7 {[%clk 0:02:58]} 8. Nge2 {[%clk 0:02:47.4]}
8... e5 {[%clk 0:02:56.7]} 9. d5 {[%clk 0:02:46.7]} 9... a5 {[%clk 0:02:54.2]}
10. g4 {[%clk 0:02:45.2]} 10... Nc5 {[%clk 0:02:45]} 11. Ng3 {[%clk 0:02:41.1]}
11... h5 {[%clk 0:02:31.8]} 12. g5 {[%clk 0:02:37.6]} 12... Nfd7 {[%clk
0:01:57.8]} 13. h4 {[%clk 0:02:37.3]} 13... O-O {[%clk 0:01:54.7]} 14. Be2
{[%clk 0:02:26]} 14... Qe7 {[%clk 0:01:48.6]} 15. b3 {[%clk 0:02:16.7]} 15... f6
{[%clk 0:01:29.7]} 16. O-O-O {[%clk 0:02:05.2]} 16... Qf7 {[%clk 0:01:20.4]} 17.
gxf6 {[%clk 0:01:33.1]} 17... Nxf6 {[%clk 0:01:15.5]} 18. Rdg1 {[%clk
0:01:32.8]} 18... Kh7 {[%clk 0:01:13.6]} 19. Kc2 {[%clk 0:01:24.3]} 19... Ng8
{[%clk 0:01:11.3]} 20. Rg2 {[%clk 0:01:17.8]} 20... Bh6 {[%clk 0:01:11.2]} 21.
Bxh6 {[%clk 0:01:10.4]} 21... Nxh6 {[%clk 0:01:11]} 22. Nf1 {[%clk 0:01:03.8]}
22... Qf4 {[%clk 0:01:05.8]} 23. Ne3 {[%clk 0:01:04.1]} 23... Rf7 {[%clk
0:00:40.2]} 24. Bd1 {[%clk 0:00:49.8]} 24... Rg8 {[%clk 0:00:34]} 25. Kb2 {[%clk
0:00:42]} 25... Rfg7 {[%clk 0:00:19]} 26. a3 {[%clk 0:00:41.8]} 26... Nf7 {[%clk
0:00:18.1]} 27. b4 {[%clk 0:00:40.3]} 27... axb4 {[%clk 0:00:18.7]} 28. axb4
{[%clk 0:00:41.2]} 28... Na6 {[%clk 0:00:19.3]} 29. Kb3 {[%clk 0:00:41.6]} 29...
Ra8 {[%clk 0:00:12.5]} 30. Ne2 {[%clk 0:00:33]} 30... Qf6 {[%clk 0:00:11.3]} 31.
Bc2 {[%clk 0:00:25.3]} 31... Bc8 {[%clk 0:00:11.2]} 32. Rg3 {[%clk 0:00:20.9]}
32... Bd7 {[%clk 0:00:10.1]} 33. Kb2 {[%clk 0:00:19.2]} 33... b5 {[%clk
0:00:10]} 34. Bd3 {[%clk 0:00:11]} 34... bxc4 {[%clk 0:00:09.7]} 35. Bxc4 {[%clk
0:00:11.6]} 35... Rgg8 {[%clk 0:00:08.4]} 36. Nc2 {[%clk 0:00:11.5]} 36... Rgb8
{[%clk 0:00:06.6]} 37. Rhg1 {[%clk 0:00:12]} 37... Nh8 {[%clk 0:00:06.1]} 38.
Ra1 {[%clk 0:00:08.3]} 38... Bb5 {[%clk 0:00:04.3]} 39. Qd3 {[%clk 0:00:05.6]}
39... Bxc4 {[%clk 0:00:04.4]} 40. Qxc4 {[%clk 0:00:06.5]} 40... Rb6 {[%clk
0:00:02.5]} 41. Kc3 {[%clk 0:00:05.8]} 41... Nf7 {[%clk 0:00:02.6]} 42. b5
{[%clk 0:00:06.2]} 42... Nh6 {[%clk 0:00:01.3]} 43. Rxa6 {[%clk 0:00:04.9]}
43... Raxa6 {[%clk 0:00:01.2]} 44. bxa6 {[%clk 0:00:05.8]} 44... Qd8 {[%clk
0:00:01.8]} 45. Nb4 {[%clk 0:00:05.5]} 45... Qb8 {[%clk 0:00:01.8]} 46. Nc1
{[%clk 0:00:06]} 46... Qa7 {[%clk 0:00:02]} 47. Ncd3 {[%clk 0:00:06.4]} 47...
Rb8 {[%clk 0:00:01.9]} 48. Rg2 {[%clk 0:00:06.6]} 48... Qe3 {[%clk 0:00:02.3]}
49. Ra2 {[%clk 0:00:05.9]} 49... Rc8 {[%clk 0:00:02.2]} 50. a7 {[%clk
0:00:06.3]} 50... Qxf3 {[%clk 0:00:02.6]} 51. a8=Q {[%clk 0:00:06.5]} 51... Rxa8
{[%clk 0:00:03.3]} 52. Rxa8 {[%clk 0:00:07.1]} 52... Nf7 {[%clk 0:00:03]} 53.
Qxc7 {[%clk 0:00:07.5]} 53... Kg7 {[%clk 0:00:03.3]} 54. Ra7 {[%clk 0:00:08]}
54... g5 {[%clk 0:00:01.3]} 55. hxg5 {[%clk 0:00:07.7]} 55... h4 {[%clk
0:00:01.9]} 56. Nc6 {[%clk 0:00:06.9]} 56... h3 {[%clk 0:00:02.2]} 57. Nd8
{[%clk 0:00:07.6]} 57... h2 {[%clk 0:00:01.8]} 58. Qxf7+ {[%clk 0:00:08.1]}
58... Qxf7 {[%clk 0:00:02]} 59. Rxf7+ {[%clk 0:00:09]} 59... Kg6 {[%clk
0:00:02.8]} 60. Rf1 {[%clk 0:00:09.9]} 1-0

[Event "*** SCC Grand Prix: Titled Tuesday Blitz"]
[Site "Chess.com"]
[Date "2020.07.14"]
[Round "3"]
[White "DinaBelenkaya"]
[Black "aNaartjieZA"]
[Result "0-1"]
[WhiteElo "2270"]
[BlackElo "2489"]
[TimeControl "180+1"]
[EndTime "10:29:46 PDT"]
[Termination "aNaartjieZA won by resignation"]

1. e4 {[%clk 0:03:00.9]} 1... e6 {[%clk 0:02:59.5]} 2. Qe2 {[%clk 0:02:59.1]}
2... c5 {[%clk 0:02:58.3]} 3. Nf3 {[%clk 0:02:57.9]} 3... Nc6 {[%clk 0:02:58.5]}
4. g3 {[%clk 0:02:57.2]} 4... g6 {[%clk 0:02:58.7]} 5. c3 {[%clk 0:02:52.4]}
5... Bg7 {[%clk 0:02:58.6]} 6. Bg2 {[%clk 0:02:52.7]} 6... Nge7 {[%clk
0:02:58.7]} 7. h4 {[%clk 0:02:46.8]} 7... h6 {[%clk 0:02:58.2]} 8. O-O {[%clk
0:02:42.6]} 8... d5 {[%clk 0:02:58.2]} 9. e5 {[%clk 0:02:10.3]} 9... Qc7 {[%clk
0:02:51.7]} 10. d4 {[%clk 0:02:09.9]} 10... b6 {[%clk 0:02:49.5]} 11. a4 {[%clk
0:01:58]} 11... Na5 {[%clk 0:02:41.5]} 12. Na3 {[%clk 0:01:46.4]} 12... a6
{[%clk 0:02:33.6]} 13. b4 {[%clk 0:01:37.5]} 13... Nb3 {[%clk 0:02:32]} 14. Rb1
{[%clk 0:01:30.2]} 14... Nxc1 {[%clk 0:02:32]} 15. Rfxc1 {[%clk 0:01:31.1]}
15... c4 {[%clk 0:02:32]} 16. Nh2 {[%clk 0:01:21.1]} 16... Bd7 {[%clk
0:02:31.5]} 17. Nxc4 {[%clk 0:01:19]} 17... dxc4 {[%clk 0:02:24.7]} 18. Bxa8
{[%clk 0:01:19.9]} 18... O-O {[%clk 0:02:14.9]} 19. Bg2 {[%clk 0:01:19.4]} 19...
Bxa4 {[%clk 0:02:14.7]} 20. Ra1 {[%clk 0:01:15.6]} 20... Bb5 {[%clk 0:02:14.6]}
21. Ng4 {[%clk 0:01:14.3]} 21... Rd8 {[%clk 0:02:12.2]} 22. Qe3 {[%clk
0:01:10.2]} 22... Kh7 {[%clk 0:02:06.6]} 23. h5 {[%clk 0:01:01.9]} 23... Nf5
{[%clk 0:02:06.3]} 24. Qe4 {[%clk 0:00:52.2]} 24... Kg8 {[%clk 0:01:52.1]} 25.
hxg6 {[%clk 0:00:48.4]} 25... fxg6 {[%clk 0:01:51.8]} 26. Nf6+ {[%clk
0:00:46.8]} 26... Bxf6 {[%clk 0:01:51.5]} 27. exf6 {[%clk 0:00:47.7]} 27... Kf7
{[%clk 0:01:49.8]} 28. Rd1 {[%clk 0:00:30.5]} 28... Kxf6 {[%clk 0:01:43.4]} 29.
d5 {[%clk 0:00:30.7]} 29... exd5 {[%clk 0:01:42.4]} 30. Rxd5 {[%clk 0:00:31.6]}
30... Rxd5 {[%clk 0:01:42.2]} 31. Qxd5 {[%clk 0:00:31.7]} 31... Qe5 {[%clk
0:01:36.9]} 32. Qd8+ {[%clk 0:00:24.9]} 32... Kg7 {[%clk 0:01:33.2]} 33. Qxb6
{[%clk 0:00:22.1]} 33... Qxc3 {[%clk 0:01:33.2]} 34. Qc7+ {[%clk 0:00:19.8]}
34... Kf6 {[%clk 0:01:30.7]} 35. Rd1 {[%clk 0:00:20.4]} 35... Qe5 {[%clk
0:01:28.7]} 36. Qd8+ {[%clk 0:00:18.1]} 36... Qe7 {[%clk 0:01:27.9]} 37. Qb6+
{[%clk 0:00:14.1]} 37... Qe6 {[%clk 0:01:25.8]} 38. Qc7 {[%clk 0:00:14.3]} 38...
Qe7 {[%clk 0:01:18.2]} 39. Qf4 {[%clk 0:00:13.5]} 39... Qe5 {[%clk 0:01:16.9]}
40. Qg4 {[%clk 0:00:07.6]} 40... h5 {[%clk 0:01:13.4]} 41. Qf3 {[%clk
0:00:06.6]} 41... Kg7 {[%clk 0:01:08.1]} 42. g4 {[%clk 0:00:06.6]} 42... Nd4
{[%clk 0:01:04.6]} 43. Qe3 {[%clk 0:00:03]} 43... Qxe3 {[%clk 0:01:00.7]} 44.
fxe3 {[%clk 0:00:03.9]} 44... Nc2 {[%clk 0:01:00.7]} 45. Rd6 {[%clk 0:00:03.2]}
45... Nxb4 {[%clk 0:00:58.3]} 46. Be4 {[%clk 0:00:03.4]} 46... hxg4 {[%clk
0:00:57.3]} 47. Rxg6+ {[%clk 0:00:03.4]} 47... Kf7 {[%clk 0:00:57.4]} 48. Rxg4
{[%clk 0:00:04.3]} 48... c3 {[%clk 0:00:57.5]} 49. Rg2 {[%clk 0:00:04.4]} 49...
Ke6 {[%clk 0:00:56.4]} 50. Bc2 {[%clk 0:00:05]} 50... Ke5 {[%clk 0:00:54.9]} 51.
e4 {[%clk 0:00:04.9]} 51... Nxc2 {[%clk 0:00:45.1]} 52. Rxc2 {[%clk 0:00:04.6]}
52... Kd4 {[%clk 0:00:45.3]} 53. Rc1 {[%clk 0:00:03.6]} 53... Bd3 {[%clk
0:00:42.3]} 54. e5 {[%clk 0:00:03.8]} 54... c2 {[%clk 0:00:41.3]} 55. e6 {[%clk
0:00:03.6]} 55... Kc3 {[%clk 0:00:41.1]} 56. e7 {[%clk 0:00:02.6]} 56... Bb5
{[%clk 0:00:41.2]} 57. Kf2 {[%clk 0:00:01.7]} 57... Kb2 {[%clk 0:00:41.1]} 58.
Rxc2+ {[%clk 0:00:02.2]} 58... Kxc2 {[%clk 0:00:41.3]} 59. Ke3 {[%clk
0:00:02.6]} 59... a5 {[%clk 0:00:39.7]} 60. Kd4 {[%clk 0:00:02.7]} 60... Kb3
{[%clk 0:00:37.8]} 61. Kc5 {[%clk 0:00:02.7]} 61... Be8 {[%clk 0:00:37.8]} 62.
Kd6 {[%clk 0:00:02.5]} 62... a4 {[%clk 0:00:37.7]} 63. Kc7 {[%clk 0:00:03.4]}
63... a3 {[%clk 0:00:37.9]} 64. Kd8 {[%clk 0:00:04.3]} 64... Bh5 {[%clk
0:00:38.3]} 65. e8=Q {[%clk 0:00:04.3]} 65... Bxe8 {[%clk 0:00:38.4]} 66. Kxe8
{[%clk 0:00:05.2]} 66... a2 {[%clk 0:00:38.8]} 0-1